bitfinex-derivatives/quotes_BNBF0:USTF0_20250128
["timestamp","ask_amount","ask_price","bid_price","bid_amount"]
[1738094352224,0.29815146,670.8,669.62,1.11762987]
[1738094352419,1.85591866,670.8,669.62,1.11762987]
[1738094356527,0.27415517,670.79,669.62,1.11762987]
[1738094356727,0.29816035,670.78,669.62,1.11762987]
[1738094356928,0.27415517,670.77,669.62,1.11762987]
[1738094357128,1.5577672,670.8,669.62,1.11762987]
[1738094357129,0.29816924,670.76,669.62,1.11762987]
[1738094357328,0.27415899,670.75,669.62,1.11762987]
[1738094357527,0.57233267,670.75,669.62,1.11762987]
[1738094357727,0.27415899,670.74,669.62,1.11762987]
[1738094358822,0.29817368,670.75,669.62,1.11762987]
[1738094359028,0.2741626,670.74,669.62,1.11762987]
[1738094359925,0.2741626,670.74,669.67,1.11762987]
[1738094360528,0.27416285,670.73,669.67,1.11762987]
[1738094360727,0.29817368,670.75,669.67,1.11762987]
[1738094360728,0.27416285,670.72,669.67,1.11762987]
[1738094361023,0.27416285,670.71,669.67,1.11762987]
[1738094361228,0.27416285,670.7,669.67,1.11762987]
[1738094361430,0.27416285,670.74,669.67,1.11762987]
[1738094361628,0.27416285,670.73,669.67,1.11762987]
[1738094361824,0.27416285,670.74,669.67,1.11762987]
[1738094362030,0.27416285,670.73,669.67,1.11762987]
[1738094362331,0.27416285,670.72,669.67,1.11762987]
[1738094362530,0.29817368,670.75,669.67,1.11762987]
[1738094362531,0.27416285,670.71,669.67,1.11762987]
[1738094362831,0.27416285,670.7,669.67,1.11762987]
[1738094363129,0.27416285,670.69,669.67,1.11762987]
[1738094363331,0.27416285,670.71,669.67,1.11762987]
[1738094363533,0.27416285,670.7,669.68,1.11762987]
[1738094363730,0.27416285,670.69,669.68,1.11762987]
[1738094363931,0.27416331,670.68,669.68,1.11762987]
[1738094364232,0.27416331,670.67,669.68,1.11762987]
[1738094364431,0.27416331,670.71,669.68,1.11762987]
[1738094364732,0.27416331,670.7,669.68,1.11762987]
[1738094364932,0.27416331,670.71,669.68,1.11762987]
[1738094365131,0.27416331,670.7,669.68,1.11762987]
[1738094365333,0.27416331,670.71,669.68,1.11762987]
[1738094365532,1.55779626,670.72,669.68,1.11762987]
[1738094365829,0.27416432,670.71,669.68,1.11762987]
[1738094366334,0.27416432,670.71,669.7,1.11762987]
[1738094368335,1.55779626,670.72,669.7,1.11762987]
[1738094368633,0.57239241,670.71,669.7,1.11762987]
[1738094368827,0.57239686,670.7,669.7,1.11762987]
[1738094369031,0.29820036,670.69,669.7,1.11762987]
[1738094369537,0.29820036,670.69,669.68,1.11762987]
[1738094372435,0.29820036,670.69,669.48,1.11762987]
[1738094375441,0.29820036,670.69,669.49,1.11762987]
[1738094378344,0.29820036,670.69,669.4,1.11762987]
[1738094380847,0.29820036,670.69,669.45,1.11762987]
[1738094383347,0.29820036,670.69,669.46,1.11762987]
[1738094386048,0.2742014,670.68,669.46,1.11762987]
[1738094386244,0.29820925,670.67,669.46,1.11762987]
[1738094386447,0.2742014,670.66,669.46,1.11762987]
[1738094386649,0.2742014,670.66,669.45,1.11762987]
[1738094387044,1.55806361,670.65,669.45,1.11762987]
[1738094387246,0.2742014,670.64,669.45,1.11762987]
[1738094388443,1.55806361,670.65,669.45,1.11762987]
[1738094390146,1.55806361,670.65,669.56,1.11762987]
[1738094390752,0.29822259,670.64,669.56,1.11762987]
[1738094393258,0.27422566,670.63,669.56,1.11762987]
[1738094393452,0.29822259,670.64,669.56,1.11762987]
[1738094393657,0.27422179,670.63,669.52,1.11762987]
[1738094395960,0.29822259,670.64,669.52,1.11762987]
[1738094398365,0.27422272,670.63,669.52,1.11762987]
[1738094399163,0.29822259,670.64,669.52,1.11762987]
[1738094399365,0.27422209,670.63,669.52,1.11762987]
[1738094400459,0.29822259,670.64,669.52,1.11762987]
[1738094403361,0.29822259,670.64,669.6,1.11762987]
[1738094406963,0.29822259,670.64,669.06,1.34115585]
[1738094406964,0.29822259,670.64,669.63,1.11762987]
[1738094408163,0.27421344,670.63,669.63,1.11762987]
[1738094408763,0.29822259,670.64,669.63,1.11762987]
[1738094409068,0.29822259,670.64,669.64,1.11762987]
[1738094409263,0.27421025,670.63,669.64,1.11762987]
[1738094411872,1.3932605,670.63,669.64,1.11762987]
[1738094412070,0.27421025,670.62,669.64,1.11762987]
[1738094414066,0.27422032,670.61,669.64,1.11762987]
[1738094414268,0.27422032,670.62,669.64,1.11762987]
[1738094414570,1.11905025,670.59,669.69,1.11762987]
[1738094415172,1.55797061,670.58,669.69,1.11762987]
[1738094417670,0.29825372,670.57,669.69,1.11762987]
[1738094418071,0.29825372,670.57,669.67,1.11762987]
[1738094421072,0.27422879,670.56,669.67,1.11762987]
[1738094421274,0.57248696,670.56,669.63,1.11762987]
[1738094421470,0.27422879,670.55,669.63,1.11762987]
[1738094422271,0.29825817,670.56,669.63,1.11762987]
[1738094424875,0.27422276,670.55,669.63,1.11762987]
[1738094425078,0.29825817,670.56,669.63,1.11762987]
[1738094426572,0.29825817,670.56,669.64,1.11762987]
[1738094427275,0.27424813,670.55,669.64,1.11762987]
[1738094427875,0.29826706,670.54,669.64,1.11762987]
[1738094428071,0.27424813,670.53,669.64,1.11762987]
[1738094428272,0.29827596,670.52,669.64,1.11762987]
[1738094428471,0.27424813,670.51,669.64,1.11762987]
[1738094428678,0.29828486,670.5,669.64,1.11762987]
[1738094428876,0.27424813,670.49,669.64,1.11762987]
[1738094430179,0.27424813,670.49,669.59,1.11762987]
[1738094431073,2.97557314,670.5,669.59,1.11762987]
[1738094431279,0.27426029,670.49,669.59,1.11762987]
[1738094432675,0.27426029,670.49,669.56,1.11762987]
[1738094432879,1.85652289,670.5,669.56,1.11762987]
[1738094435480,1.85652289,670.5,669.62,1.11762987]
[1738094439286,1.85652289,670.5,669.63,1.11762987]
[1738094442386,1.85652289,670.5,669.64,1.11762987]
[1738094443386,0.29828486,670.5,669.64,1.11762987]
[1738094445488,0.29828486,670.5,668.9,2.28182767]
[1738094445489,0.29828486,670.5,669.51,1.11762987]
[1738094452291,0.29828486,670.5,669.49,1.11762987]
[1738094455091,0.29828486,670.5,669.59,1.11762987]
[1738094458497,0.29828486,670.5,669.11,2.1004364]
[1738094458498,0.29828486,670.5,669.68,1.11762987]
[1738094461097,0.29828486,670.5,669.67,1.11762987]
[1738094465092,0.29828486,670.5,669.09,2.09865294]
[1738094465093,0.29828486,670.5,669.64,1.11762987]
[1738094468297,0.29828486,670.5,669.63,1.11762987]
[1738094472002,0.27425605,670.49,669.63,1.11762987]
[1738094474703,0.27425605,670.49,669.43,1.11762987]
[1738094475798,0.29828486,670.5,669.43,1.11762987]
[1738094476002,0.274261,670.49,669.43,1.11762987]
[1738094477604,0.274261,670.49,668.86,2.09775915]
[1738094477605,0.274261,670.49,669.4,1.11762987]
[1738094478203,1.55831943,670.48,669.4,1.11762987]
[1738094478403,0.274261,670.47,669.4,1.11762987]
[1738094480404,0.274261,670.47,669.35,1.11762987]
[1738094483207,0.29830265,670.46,669.35,1.11762987]
[1738094483406,0.274261,670.45,669.35,1.11762987]
[1738094483601,0.274261,670.45,668.76,3.07951288]
[1738094483602,0.29831155,670.44,669.13,1.11762987]
[1738094483802,0.274261,670.43,669.13,1.11762987]
[1738094484005,0.29832045,670.42,669.13,1.11762987]
[1738094484202,0.274261,670.41,669.13,1.11762987]
[1738094484409,0.29832935,670.4,669.13,1.11762987]
[1738094484709,0.274261,670.39,669.13,1.11762987]
[1738094484902,0.29833825,670.38,669.13,1.11762987]
[1738094485103,0.274261,670.37,669.13,1.11762987]
[1738094485307,0.29834715,670.36,669.13,1.11762987]
[1738094485504,0.274261,670.35,669.13,1.11762987]
[1738094485710,0.29835605,670.34,669.13,1.11762987]
[1738094485912,0.274261,670.33,669.13,1.11762987]
[1738094486112,0.29836496,670.32,669.13,1.11762987]
[1738094486309,0.274261,670.31,669.13,1.11762987]
[1738094487014,0.29837386,670.3,669.13,1.11762987]
[1738094487414,0.29837386,670.3,668.99,1.11762987]
[1738094488509,1.55897681,670.29,668.99,1.11762987]
[1738094488715,0.29838276,670.28,668.99,1.11762987]
[1738094490819,0.29838276,670.28,668.68,1.11762987]
[1738094490820,0.29838276,670.28,668.7,1.11762987]
[1738094494220,0.29838276,670.28,668.6,1.11762987]
[1738094494821,0.27438609,670.27,668.6,1.11762987]
[1738094495918,0.29839166,670.26,668.6,1.11762987]
[1738094496122,0.27438609,670.25,668.6,1.11762987]
[1738094496620,0.29840057,670.24,668.6,1.11762987]
[1738094496820,0.27438609,670.23,668.6,1.11762987]
[1738094497017,0.27438609,670.23,668.71,1.11762987]
[1738094497018,0.29840947,670.22,668.71,1.11762987]
[1738094497223,0.27438609,670.21,668.71,1.11762987]
[1738094498018,0.57280001,670.21,668.71,1.11762987]
[1738094498220,0.27438609,670.2,668.71,1.11762987]
[1738094498623,0.29842283,670.19,668.71,1.11762987]
[1738094498823,0.27438609,670.18,668.71,1.11762987]
[1738094499023,0.29843174,670.17,668.71,1.11762987]
[1738094499223,0.27438609,670.16,668.71,1.11762987]
[1738094499424,0.29843174,670.17,668.71,1.11762987]
[1738094503128,0.29843174,670.17,666.8,3.24474321]
[1738094503129,0.29843174,670.17,668.87,1.11762987]
[1738094505130,1.55894189,670.34,668.87,1.11762987]
[1738094506330,1.55894189,670.34,669.08,1.11762987]
[1738094506631,1.55894189,670.34,669.09,0.29891344]
[1738094507432,1.11905025,670.78,669.09,0.29891344]
[1738094507632,1.55864514,670.39,669.09,0.29891344]
[1738094507831,0.29816924,670.76,669.09,0.29891344]
[1738094508133,1.55861606,670.39,669.09,0.29891344]
[1738094508332,0.29816924,670.76,669.09,0.29891344]
[1738094508727,0.27426247,670.75,669.09,0.29891344]
[1738094508929,0.29818257,670.73,669.09,0.29891344]
[1738094509129,0.27426247,670.72,669.09,0.29891344]
[1738094509327,0.29818257,670.73,669.09,0.29891344]
[1738094509831,1.55841829,670.71,669.09,0.29891344]
[1738094510433,0.29819591,670.7,669.09,0.29891344]
[1738094517034,0.27420621,670.69,669.09,0.29891344]
[1738094518540,0.29819591,670.7,669.09,0.29891344]
[1738094518541,0.29819591,670.7,669.17,1.11762987]
[1738094518732,0.27420912,670.69,669.18,0.29887324]
[1738094521941,0.27420912,670.69,669.25,1.11762987]
[1738094522135,0.27420912,670.69,669.26,0.29883752]
[1738094524743,0.29819591,670.7,669.26,0.29883752]
[1738094524935,0.27420731,670.68,669.26,0.29883752]
[1738094525136,0.27420731,670.67,669.26,0.29883752]
[1738094525443,0.27420731,670.66,669.26,0.29883752]
[1738094525643,0.27420731,670.69,669.26,0.29883752]
[1738094525843,0.27420731,670.68,669.26,0.29883752]
[1738094526043,0.27420731,670.67,669.26,0.29883752]
[1738094526244,0.27420731,670.69,669.26,0.29883752]
[1738094526444,0.27420731,670.68,669.26,0.29883752]
[1738094526639,0.27420731,670.67,669.26,0.29883752]
[1738094526948,0.29819591,670.7,669.26,0.29883752]
[1738094527140,0.27420491,670.69,669.26,0.29883752]
[1738094528243,0.29819591,670.7,669.28,1.11762987]
[1738094528444,0.27420247,670.69,669.29,0.29882412]
[1738094531147,0.29819591,670.7,669.29,0.29882412]
[1738094531350,0.29819591,670.7,669.31,1.11762987]
[1738094533150,0.29819591,670.7,669.32,0.29881073]
[1738094534854,0.29819591,670.7,669.34,1.11762987]
[1738094535054,0.29819591,670.7,669.35,0.29879734]
[1738094536149,0.29115866,670.7,669.35,0.29879734]
[1738094537449,0.29115866,670.7,669.44,1.11762987]
[1738094537650,0.29115866,670.7,669.45,0.2987527]
[1738094540457,0.29115866,670.7,669.51,1.11762987]
[1738094543951,0.29115866,670.7,669.57,1.11762987]
[1738094547560,0.29115866,670.7,669.58,1.11762987]
[1738094550260,0.29115866,670.7,669.57,1.11762987]
[1738094554361,0.29115866,670.7,669.51,1.11762987]
[1738094557063,0.29115866,670.7,669.54,1.11762987]
[1738094560467,0.29115866,670.7,669.61,1.11762987]
[1738094564972,0.29115866,670.7,669.7,1.11762987]
[1738094566571,1.55776139,670.69,669.7,1.11762987]
[1738094568175,1.55776139,670.69,669.52,1.11762987]
[1738094569074,1.85596175,670.69,669.52,1.11762987]
[1738094572269,1.85596175,670.69,669.45,1.41638257]
[1738094574675,1.85596175,670.69,669.45,0.2987527]
[1738094576178,0.27419159,670.68,669.45,0.2987527]
[1738094576481,1.85596175,670.69,669.45,0.2987527]
[1738094577976,1.85596175,670.69,669.53,1.11762987]
[1738094580575,1.85596175,670.69,669.58,1.11762987]
[1738094584282,1.85596175,670.69,669.45,0.2987527]
[1738094584283,1.85596175,670.69,669.63,1.11762987]
[1738094586886,1.85596175,670.69,669.45,0.2987527]
[1738094586887,1.85596175,670.69,669.64,1.11762987]
[1738094587683,0.27416803,670.68,669.64,1.11762987]
[1738094588585,1.85596175,670.69,669.64,1.11762987]
[1738094588782,0.2741696,670.68,669.64,1.11762987]
[1738094589387,1.85596175,670.69,669.64,1.11762987]
[1738094589780,1.85596175,670.69,669.7,1.11762987]
[1738094592090,1.85596175,670.69,669.68,1.11762987]
[1738094594692,1.85596175,670.69,669.69,1.11762987]
[1738094597294,1.85596175,670.69,669.65,1.11762987]
[1738094599591,0.27417489,670.68,669.65,1.11762987]
[1738094602598,1.85596175,670.69,669.65,1.11762987]
[1738094602800,0.27417947,670.68,669.65,1.11762987]
[1738094603395,0.27417947,670.68,669.45,0.2987527]
[1738094603396,0.27417947,670.68,669.71,1.11762987]
[1738094604309,1.85596175,670.69,669.71,1.11762987]
[1738094604602,0.27421558,670.68,669.71,1.11762987]
[1738094605799,1.85596175,670.69,669.71,1.11762987]
[1738094606702,1.85596175,670.69,669.61,1.11762987]
[1738094609004,1.85596175,670.69,669.67,1.11762987]
[1738094611706,1.85596175,670.69,669.48,1.11762987]
[1738094614209,1.85596175,670.69,669.46,1.11762987]
[1738094618712,1.85596175,670.69,669.45,0.2987527]
[1738094618713,1.85596175,670.69,669.53,1.11762987]
[1738094621515,0.27417216,670.68,669.74,1.11762987]
[1738094622714,1.85596175,670.69,669.74,1.11762987]
[1738094622915,0.27417363,670.68,669.74,1.11762987]
[1738094624719,0.27417363,670.68,669.8,1.11762987]
[1738094625616,1.85596175,670.69,669.8,1.11762987]
[1738094627618,1.85596175,670.69,669.64,1.11762987]
[1738094636320,1.85596175,670.69,669.63,1.11762987]
[1738094639324,1.85596175,670.69,669.72,1.11762987]
[1738094642732,1.85596175,670.69,669.73,1.11762987]
[1738094645436,1.85596175,670.69,669.7,1.11762987]
[1738094648529,1.85596175,670.69,669.61,1.11762987]
[1738094651132,1.85596175,670.69,669.67,1.11762987]
[1738094654135,1.85596175,670.69,669.69,1.11762987]
[1738094658537,0.27418189,670.68,669.69,1.11762987]
[1738094659139,0.2741842,670.67,669.69,1.11762987]
[1738094659338,0.2741842,670.68,669.69,1.11762987]
[1738094659639,0.2741842,670.67,669.69,1.11762987]
[1738094659833,0.2741842,670.68,669.69,1.11762987]
[1738094660037,0.2741842,670.67,669.69,1.11762987]
[1738094660240,0.2741842,670.68,669.73,1.11762987]
[1738094660434,0.2741842,670.67,669.73,1.11762987]
[1738094660635,0.2741842,670.68,669.73,1.11762987]
[1738094660835,0.2741842,670.67,669.73,1.11762987]
[1738094661037,0.2741842,670.68,669.73,1.11762987]
[1738094661238,0.2741842,670.67,669.73,1.11762987]
[1738094661439,0.2741842,670.68,669.73,1.11762987]
[1738094662139,0.572389,670.68,669.73,1.11762987]
[1738094662339,0.2741842,670.67,669.73,1.11762987]
[1738094662535,0.2982048,670.68,669.73,1.11762987]
[1738094662941,0.2982048,670.68,669.74,1.11762987]
[1738094663341,0.27418975,670.67,669.74,1.11762987]
[1738094664247,0.2982048,670.68,669.74,1.11762987]
[1738094665949,0.2982048,670.68,669.67,1.11762987]
[1738094667251,0.27421076,670.67,669.67,1.11762987]
[1738094668252,0.27421076,670.67,669.58,1.11762987]
[1738094668852,0.2982048,670.68,669.58,1.11762987]
[1738094672256,0.27426166,670.67,669.58,1.11762987]
[1738094672455,0.27426166,670.67,669.45,0.2987527]
[1738094672855,0.2982048,670.68,669.45,0.2987527]
[1738094673056,0.27426407,670.67,669.45,0.2987527]
[1738094673855,0.29821369,670.66,669.45,0.2987527]
[1738094678561,0.27425341,670.65,669.45,0.2987527]
[1738094678762,0.29822259,670.64,669.45,0.2987527]
[1738094679062,0.27425341,670.63,669.45,0.2987527]
[1738094679263,0.29823148,670.62,669.45,0.2987527]
[1738094679558,0.27425341,670.61,669.45,0.2987527]
[1738094679763,0.29824038,670.6,669.45,0.2987527]
[1738094680061,0.27425341,670.59,669.45,0.2987527]
[1738094680461,0.29824927,670.58,669.45,0.2987527]
[1738094680661,0.27425341,670.57,669.45,0.2987527]
[1738094680862,0.29825817,670.56,669.45,0.2987527]
[1738094681061,0.27425341,670.55,669.45,0.2987527]
[1738094681259,0.29826706,670.54,669.45,0.2987527]
[1738094681664,0.2742727,670.53,669.45,0.2987527]
[1738094683065,0.57254421,670.53,669.45,0.2987527]
[1738094683263,0.2742727,670.52,669.45,0.2987527]
[1738094683466,0.29828041,670.51,669.45,0.2987527]
[1738094683662,0.2742727,670.5,669.45,0.2987527]
[1738094688172,0.29828041,670.51,669.45,0.2987527]
[1738094688374,0.27427315,670.5,669.45,0.2987527]
[1738094689275,0.29828041,670.51,669.45,0.2987527]
[1738094690173,1.55836014,670.5,669.45,0.2987527]
[1738094699181,0.27425184,670.49,669.45,0.2987527]
[1738094700587,0.27425184,670.49,669.45,1.41638257]
[1738094701683,1.55836014,670.5,669.45,1.41638257]
[1738094704086,1.55836014,670.5,669.6,1.11762987]
[1738094707780,0.29828041,670.51,669.64,1.11762987]
[1738094710290,0.29828041,670.51,669.49,1.11762987]
[1738094713602,0.29828041,670.51,669.45,1.41638257]
[1738094716608,0.29828041,670.51,669.47,1.11762987]
[1738094719511,0.29828041,670.51,669.58,1.11762987]
[1738094723111,0.29828041,670.51,669.67,1.11762987]
[1738094723613,1.11905025,670.96,669.67,1.11762987]
[1738094723805,1.55764518,670.79,669.67,1.11762987]
[1738094724008,0.27413189,670.78,669.67,1.11762987]
[1738094724211,0.27413189,670.94,669.67,1.11762987]
[1738094724411,1.55758708,670.79,669.67,1.11762987]
[1738094724610,0.27413247,670.78,669.67,1.11762987]
[1738094724815,0.27413247,670.77,669.67,1.11762987]
[1738094725115,1.55758708,670.79,669.67,1.11762987]
[1738094725308,0.27413322,670.78,669.67,1.11762987]
[1738094725812,0.27413322,670.78,669.71,1.11762987]
[1738094726410,1.55758708,670.79,669.71,1.11762987]
[1738094726613,0.27414735,670.78,669.71,1.11762987]
[1738094728611,0.27414735,670.78,669.69,1.11762987]
[1738094730318,1.55758708,670.79,669.69,1.11762987]
[1738094730815,1.55758708,670.79,669.73,1.11762987]
[1738094731717,0.27413871,670.78,669.73,1.11762987]
[1738094731914,1.55758708,670.79,669.73,1.11762987]
[1738094732114,0.27414922,670.78,669.73,1.11762987]
[1738094733713,0.27414922,670.78,669.63,1.11762987]
[1738094737121,0.27416574,670.77,669.63,1.11762987]
[1738094737422,1.55758708,670.79,669.63,1.11762987]
[1738094737423,0.27416574,670.76,669.63,1.11762987]
[1738094737615,1.55758708,670.79,669.63,1.11762987]
[1738094737616,0.27416574,670.75,669.63,1.11762987]
[1738094737819,1.55758708,670.79,669.63,1.11762987]
[1738094738020,0.27416619,670.78,669.63,1.11762987]
[1738094740521,1.55758708,670.79,669.63,1.11762987]
[1738094740723,0.27416621,670.78,669.61,1.11762987]
[1738094743029,0.27416621,670.78,669.67,1.11762987]
[1738094745131,1.55758708,670.79,669.64,1.11762987]
[1738094749338,1.55758708,670.79,669.49,1.11762987]
[1738094752341,1.55758708,670.79,669.45,0.2987527]
[1738094752342,1.55758708,670.79,669.53,1.11762987]
[1738094755044,1.55758708,670.79,669.58,1.11762987]
[1738094761045,0.274155,670.78,669.58,1.11762987]
[1738094763041,0.27415381,670.77,669.58,1.11762987]
[1738094763244,0.27415381,670.78,669.58,1.11762987]
[1738094763549,0.27415381,670.77,669.71,1.11762987]
[1738094763951,0.27415381,670.76,669.71,1.11762987]
[1738094764247,0.27415381,670.75,669.71,1.11762987]
[1738094764447,0.27415381,670.78,669.71,1.11762987]
[1738094764650,0.27415381,670.77,669.71,1.11762987]
[1738094764842,0.27415381,670.76,669.71,1.11762987]
[1738094765047,1.55758708,670.79,669.71,1.11762987]
[1738094765048,0.27415381,670.78,669.71,1.11762987]
[1738094765247,0.27415381,670.77,669.71,1.11762987]
[1738094765445,0.27415381,670.78,669.71,1.11762987]
[1738094765952,0.27415381,670.78,669.45,1.41638257]
[1738094765953,1.11905025,670.74,669.78,1.11762987]
[1738094766144,0.27415381,670.73,669.78,1.11762987]
[1738094766753,1.55769166,670.72,669.78,1.11762987]
[1738094768757,0.27418082,670.71,669.78,1.11762987]
[1738094769256,1.55769166,670.72,669.74,1.11762987]
[1738094769554,0.29819146,670.71,669.74,1.11762987]
[1738094770254,0.27420155,670.7,669.74,1.11762987]
[1738094770456,0.29820036,670.69,669.74,1.11762987]
[1738094770656,0.27420155,670.68,669.74,1.11762987]
[1738094770956,0.29820925,670.67,669.74,1.11762987]
[1738094771152,0.27420155,670.66,669.74,1.11762987]
[1738094771557,0.29820925,670.67,669.74,1.11762987]
[1738094771959,0.29820925,670.67,669.45,0.2987527]
[1738094771960,0.29820925,670.67,669.66,1.11762987]
[1738094772659,0.27420257,670.66,669.66,1.11762987]
[1738094773459,0.27420271,670.65,669.66,1.11762987]
[1738094773655,0.27420271,670.66,669.66,1.11762987]
[1738094773859,0.29820925,670.67,669.66,1.11762987]
[1738094774055,0.27420271,670.66,669.66,1.11762987]
[1738094774660,0.27420271,670.66,669.45,0.2987527]
[1738094774661,0.27420271,670.66,669.65,1.11762987]
[1738094775159,0.29820925,670.67,669.65,1.11762987]
[1738094775362,0.27420311,670.66,669.65,1.11762987]
[1738094777064,1.83213977,670.65,669.65,1.11762987]
[1738094777263,0.27419241,670.64,669.65,1.11762987]
[1738094777564,0.27419241,670.64,669.67,1.11762987]
[1738094779565,1.55794736,670.65,669.67,1.11762987]
[1738094780467,0.27416376,670.64,669.73,1.11762987]
[1738094781163,1.55794736,670.65,669.73,1.11762987]
[1738094781864,0.29820925,670.67,669.73,1.11762987]
[1738094783867,0.29820925,670.67,669.45,0.2987527]
[1738094783868,0.29820925,670.67,669.82,1.11762987]
[1738094787272,0.29820925,670.67,669.77,1.11762987]
[1738094790274,0.29820925,670.67,669.75,1.11762987]
[1738094793676,0.29820925,670.67,669.76,1.11762987]
[1738094796678,0.29820925,670.67,669.69,1.11762987]
[1738094799875,0.29820925,670.67,669.68,1.11762987]
[1738094801782,0.27419066,670.66,669.68,1.11762987]
[1738094801982,1.83201016,670.66,669.68,1.11762987]
[1738094802187,0.27419066,670.65,669.68,1.11762987]
[1738094802785,0.27419066,670.65,669.69,1.11762987]
[1738094803385,1.5578195,670.66,669.69,1.11762987]
[1738094804084,0.29821814,670.65,669.69,1.11762987]
[1738094805787,0.29821814,670.65,669.45,0.2987527]
[1738094806086,0.27424854,670.64,669.45,0.2987527]
[1738094806288,0.29822704,670.63,669.45,0.2987527]
[1738094806488,0.27424854,670.62,669.45,0.2987527]
[1738094806689,0.29823593,670.61,669.45,0.2987527]
[1738094806887,0.27424854,670.6,669.45,0.2987527]
[1738094807088,0.29824482,670.59,669.45,0.2987527]
[1738094807289,0.27424854,670.58,669.45,0.2987527]
[1738094807485,0.29825372,670.57,669.45,0.2987527]
[1738094807689,0.27424854,670.56,669.45,0.2987527]
[1738094807890,0.29826262,670.55,669.45,0.2987527]
[1738094808193,0.27424854,670.54,669.45,0.2987527]
[1738094808692,0.27424854,670.54,669.47,1.11762987]
[1738094808892,0.29827151,670.53,669.47,1.11762987]
[1738094809093,0.27424854,670.52,669.47,1.11762987]
[1738094809293,0.29828041,670.51,669.47,1.11762987]
[1738094809495,0.27424854,670.5,669.47,1.11762987]
[1738094809697,0.29828931,670.49,669.47,1.11762987]
[1738094809898,0.27424854,670.48,669.47,1.11762987]
[1738094811400,0.27424854,670.48,668.91,3.08331672]
[1738094811401,0.2982982,670.47,669.31,1.11762987]
[1738094811592,0.27424854,670.46,669.31,1.11762987]
[1738094811796,0.2983071,670.45,669.31,1.11762987]
[1738094811997,0.27424854,670.44,669.31,1.11762987]
[1738094812499,0.298316,670.43,669.31,1.11762987]
[1738094812696,0.27424854,670.42,669.31,1.11762987]
[1738094813001,0.2983249,670.41,669.31,1.11762987]
[1738094813300,0.27424854,670.4,669.31,1.11762987]
[1738094813501,0.2983338,670.39,669.31,1.11762987]
[1738094813697,0.27424854,670.38,669.31,1.11762987]
[1738094813893,0.2983427,670.37,669.31,1.11762987]
[1738094814401,0.2983427,670.37,669.17,1.11762987]
[1738094814898,0.27432964,670.36,669.17,1.11762987]
[1738094815301,0.57267679,670.36,669.17,1.11762987]
[1738094815498,0.27432964,670.35,669.17,1.11762987]
[1738094816301,0.29835605,670.34,669.17,1.11762987]
[1738094816604,0.27432964,670.33,669.17,1.11762987]
[1738094816804,0.57269014,670.33,669.17,1.11762987]
[1738094817007,0.27432964,670.32,669.17,1.11762987]
[1738094817907,0.2983605,670.33,669.02,1.11762987]
[1738094818109,0.27435013,670.32,669.02,1.11762987]
[1738094818911,0.29836941,670.31,669.02,1.11762987]
[1738094819113,0.27435013,670.3,669.02,1.11762987]
[1738094820307,0.29837831,670.29,669.02,1.11762987]
[1738094820506,0.27435013,670.28,669.02,1.11762987]
[1738094820708,0.29838721,670.27,669.02,1.11762987]
[1738094821008,0.27435013,670.26,669.02,1.11762987]
[1738094821506,0.57274179,670.26,669.02,1.11762987]
[1738094821706,0.27435013,670.25,668.91,1.11762987]
[1738094822706,1.55909322,670.24,668.91,1.11762987]
[1738094822906,0.27435013,670.23,668.91,1.11762987]
[1738094823308,0.29840947,670.22,668.91,1.11762987]
[1738094823506,0.27435013,670.21,668.91,1.11762987]
[1738094824204,0.29840947,670.22,668.91,1.11762987]
[1738094824410,0.27444141,670.21,668.91,1.11762987]
[1738094825112,0.27444141,670.21,668.88,1.11762987]
[1738094825905,0.29840947,670.22,668.88,1.11762987]
[1738094826110,0.27444777,670.21,668.88,1.11762987]
[1738094827205,0.29841838,670.2,668.88,1.11762987]
[1738094827408,0.27444777,670.19,668.88,1.11762987]
[1738094828313,0.27444777,670.19,668.51,1.11762987]
[1738094828510,0.27444777,670.19,668.53,0.29916383]
[1738094829005,0.29842728,670.18,668.53,0.29916383]
[1738094829209,0.27444777,670.17,668.53,0.29916383]
[1738094829410,0.29843619,670.16,668.53,0.29916383]
[1738094829611,0.27444777,670.15,668.53,0.29916383]
[1738094829811,0.2984451,670.14,668.53,0.29916383]
[1738094830008,0.27444777,670.13,668.53,0.29916383]
[1738094830310,0.298454,670.12,668.53,0.29916383]
[1738094832816,1.55952408,670.11,668.53,0.29916383]
[1738094833710,0.29846291,670.1,668.53,0.29916383]
[1738094835012,0.274473,670.09,668.53,0.29916383]
[1738094838021,0.27450963,670.08,668.53,0.29916383]
[1738094838223,0.5729859,670.07,668.53,0.29916383]
[1738094838419,0.57299036,670.06,668.53,0.29916383]
[1738094838623,0.57299481,670.05,668.53,0.29916383]
[1738094838922,0.57299927,670.04,668.53,0.29916383]
[1738094839116,0.27450963,670.03,668.53,0.29916383]
[1738094839422,0.57300372,670.03,668.53,0.29916383]
[1738094839624,0.27450963,670.02,668.53,0.29916383]
[1738094839824,0.298503,670.01,668.53,0.29916383]
[1738094840122,0.27450963,670.0,668.53,0.29916383]
[1738094840422,0.29851191,669.99,668.53,0.29916383]
[1738094840624,0.27450963,669.98,668.53,0.29916383]
[1738094840825,0.29852082,669.97,668.53,0.29916383]
[1738094841324,0.27450745,669.96,668.53,0.29916383]
[1738094841518,0.29852974,669.95,668.53,0.29916383]